bitfinex/quotes_ETHUSD_20250605
["timestamp","ask_amount","ask_price","bid_price","bid_amount"]
[1749153203807,7.167,2535.1,2534.3,3.94586276]
[1749153204000,7.167,2535.1,2534.9,3.94485164]
[1749153204179,7.167,2535.1,2534.3,16.0]
[1749153204384,7.167,2535.1,2534.7,3.94513973]
[1749153204606,7.53298655,2535.1,2534.8,3.94507441]
[1749153204888,7.167,2535.1,2534.8,3.94507441]
[1749153205482,7.167,2535.1,2534.5,3.94546293]
[1749153205686,3.94504241,2534.9,2534.4,3.94570437]
[1749153205921,0.91598655,2535.0,2534.3,3.94585197]
[1749153206123,3.94515565,2534.8,2534.3,3.94585197]
[1749153206322,0.55,2534.9,2533.8,0.7672]
[1749153206626,0.55,2534.9,2534.2,3.9459243]
[1749153206627,0.55,2534.6,2534.2,3.9459243]
[1749153206787,9.273,2534.5,2534.3,3.94585408]
[1749153206982,9.273,2534.5,2534.4,3.94570707]
[1749153207296,7.166,2534.5,2534.4,4.73486319]
[1749153207802,7.166,2534.5,2534.4,3.94570707]
[1749153208325,2.107,2534.7,2534.6,3.94539572]
[1749153208496,9.274,2534.7,2534.6,3.94539572]
[1749153208887,2.107,2534.7,2534.6,3.94539572]
[1749153209221,7.166,2535.2,2535.0,3.94467657]
[1749153209429,0.35681959,2535.5,2535.3,3.94421716]
[1749153209729,7.52281959,2535.5,2535.3,3.94421052]
[1749153209892,0.35681959,2535.5,2535.4,3.94415082]
[1749153210339,0.35681959,2535.5,2535.3,3.94421031]
[1749153210522,0.35681959,2535.5,2535.4,3.94415082]
[1749153210825,0.35681959,2535.5,2535.3,3.94422334]
[1749153211123,0.35681959,2535.5,2535.2,3.94431891]
[1749153211327,0.35681959,2535.5,2535.1,3.94457181]
[1749153211524,0.35681959,2535.5,2535.0,3.9447298]
[1749153211726,0.35681959,2535.5,2534.9,6.05189577]
[1749153211927,0.35681959,2535.5,2535.4,3.94415082]
[1749153212313,0.35681959,2535.5,2535.4,4.71075082]
[1749153212702,0.35681959,2535.5,2535.4,3.94415082]
[1749153214035,0.35681959,2535.5,2535.2,3.94437269]
[1749153214392,0.55,2535.4,2534.4,0.7652]
[1749153214635,0.55,2535.2,2534.4,0.7652]
[1749153214934,0.55,2535.2,2534.9,3.94477987]
[1749153215702,0.55,2535.2,2535.0,3.94477071]
[1749153215999,0.55,2535.2,2535.1,3.94461756]
[1749153216438,7.714,2535.2,2535.1,3.94461756]
[1749153216605,0.35681959,2535.5,2535.2,3.94438399]
[1749153216806,7.714,2535.4,2535.2,3.94438399]
[1749153217342,7.714,2535.4,2535.1,3.9445463]
[1749153217544,7.714,2535.4,2535.2,3.94445254]
[1749153217850,0.35681959,2535.5,2535.4,3.94415082]
[1749153218550,0.35681959,2535.5,2535.4,20.76735082]
[1749153218708,0.26122974,2535.5,2535.4,20.76735082]
[1749153219342,0.02,2535.9,2535.8,3.94352866]
[1749153219647,0.02,2535.9,2535.8,6.81972866]
[1749153219849,0.02,2535.9,2535.8,23.89606728]
[1749153220249,0.02,2535.9,2535.8,22.18208795]
[1749153220455,0.02,2535.9,2535.8,24.28908795]
[1749153221469,0.02,2536.9,2536.8,3.94197414]
[1749153221628,0.02,2536.9,2536.6,2.107]
[1749153221961,0.02,2536.9,2536.8,3.94197414]
[1749153223123,0.02,2536.9,2536.6,3.94220254]
[1749153223332,0.02,2536.9,2536.8,3.94197414]
[1749153224013,0.02,2536.9,2536.5,2.107]
[1749153224209,0.02,2536.9,2536.8,3.94197414]
[1749153227162,0.02,2536.9,2536.8,5.51868396]
[1749153227344,0.02,2536.9,2536.8,4.73027414]
[1749153227543,0.02,2536.9,2536.8,3.94197414]
[1749153228848,0.02,2536.9,2536.8,20.71657414]
[1749153230325,0.02,2536.9,2536.8,6.81757414]
[1749153231365,0.02,2536.9,2536.8,7.89354396]
[1749153231960,0.02,2536.9,2536.8,23.89354396]
[1749153232361,0.02,2536.9,2536.8,21.79254396]
[1749153232539,0.02,2536.9,2536.8,23.89354396]
[1749153232738,0.02,2536.9,2536.1,0.788]
[1749153232925,0.0129,2536.8,2536.1,0.788]
[1749153233262,0.0129,2536.8,2536.5,3.94232478]
[1749153233823,0.5629,2536.8,2536.2,3.94275579]
[1749153234045,0.5629,2536.8,2536.6,3.94218563]
[1749153234230,0.5629,2536.8,2536.4,3.94248099]
[1749153234231,0.5629,2536.8,2536.7,3.94212953]
[1749153234448,0.0129,2536.8,2536.7,3.94212953]
[1749153235162,0.0129,2536.8,2536.4,3.94255816]
[1749153235323,0.0129,2536.8,2535.6,6.04479687]
[1749153235324,0.55,2536.6,2535.6,6.04479687]
[1749153235527,3.94270093,2536.4,2535.5,3.94399526]
[1749153235762,3.94270093,2536.4,2535.7,3.94359417]
[1749153235763,0.55,2536.2,2535.7,3.94359417]
[1749153235922,0.0129,2536.1,2535.2,2.49544525]
[1749153236127,0.5629,2536.1,2535.6,3.9436895]
[1749153236322,0.5629,2536.1,2535.7,3.94365855]
[1749153236549,0.55,2536.0,2534.8,2.101]
[1749153236853,0.55,2535.8,2535.4,3.9440499]
[1749153237342,0.55,2535.8,2535.3,3.94425048]
[1749153237669,0.55,2535.8,2534.9,0.68728991]
[1749153237964,0.55,2535.8,2535.4,3.9440047]
[1749153238152,0.55,2535.8,2535.3,3.94427384]
[1749153238153,0.55,2535.8,2535.5,3.94397233]
[1749153238351,0.55,2535.8,2534.9,0.68728991]
[1749153238558,0.55,2535.6,2535.2,3.94440254]
[1749153238759,4.4938618,2535.6,2535.1,3.94454331]
[1749153238959,4.4938618,2535.6,2534.7,16.8267]
[1749153238960,0.55,2535.6,2534.8,16.0]
[1749153239260,0.55,2535.6,2535.1,3.94449891]
[1749153239427,0.55,2535.6,2535.0,3.94476544]
[1749153239630,0.5629,2535.7,2534.6,18.101]
[1749153239830,0.55,2535.5,2535.2,3.94439098]
[1749153240338,16.0,2535.5,2534.1,0.02]
[1749153240563,0.0129,2535.0,2534.7,3.94513368]
[1749153240742,0.55,2534.8,2534.1,3.96610233]
[1749153240938,0.0129,2534.7,2534.1,0.02]
[1749153241340,0.55,2534.6,2534.1,3.96613927]
[1749153241630,0.0129,2534.7,2534.1,3.96609719]
[1749153241832,3.94601846,2534.2,2534.1,0.02]
[1749153242141,11.66291846,2534.2,2534.1,0.02]
[1749153242350,0.0129,2534.2,2534.1,3.96617418]
[1749153242642,0.5629,2534.9,2534.8,3.94508442]
[1749153242955,0.0129,2534.9,2534.8,3.94508442]
[1749153243129,0.0129,2535.2,2535.1,3.94461756]
[1749153243327,0.0129,2536.1,2535.0,3.94475089]
[1749153243578,4.28255525,2536.1,2534.8,3.94508442]
[1749153243743,4.26971814,2536.0,2535.5,3.94384925]
[1749153243933,0.0129,2536.1,2534.9,2.07004844]
[1749153243934,0.32647976,2535.9,2535.8,3.94352866]
[1749153244267,7.48047976,2535.9,2535.6,3.94376893]
[1749153244571,7.48047976,2535.9,2535.3,3.94430639]
[1749153244768,0.32647976,2535.9,2535.8,3.94352866]
[1749153245262,7.48047976,2535.9,2535.8,3.94352866]
[1749153245886,0.32647976,2535.9,2535.8,4.73224781]
[1749153246248,0.32647976,2535.9,2535.8,7.65254781]
[1749153246450,0.32647976,2535.9,2535.8,23.65254781]
[1749153246873,0.32647976,2535.9,2535.8,32.57133806]
[1749153248166,1.2306015,2536.8,2535.9,16.0]
[1749153248370,1.2306015,2536.8,2536.5,3.94232974]
[1749153248547,1.2306015,2536.8,2536.3,3.9427101]
[1749153248749,1.2306015,2536.8,2536.5,3.94241767]
[1749153248946,0.55,2536.7,2536.0,18.102]
[1749153249145,0.55,2536.7,2536.0,22.04517383]
[1749153249375,0.55,2536.7,2536.1,2.988939]
[1749153249774,0.55,2536.7,2535.9,2.102]
[1749153250277,0.55,2536.4,2535.3,0.7716]
[1749153250444,0.0129,2536.1,2535.3,0.7716]
[1749153250638,0.5629,2536.1,2535.1,2.102]
[1749153250974,0.55,2535.9,2535.4,3.94402019]
[1749153251273,0.55,2535.9,2535.4,3.94405692]
[1749153251580,0.5629,2536.1,2535.7,3.94359975]
[1749153251878,0.0129,2536.4,2535.7,0.78874668]
[1749153252044,0.0129,2536.4,2535.4,3.94415082]
[1749153252045,0.0129,2536.4,2535.4,16.0]
[1749153252236,0.0129,2536.4,2536.3,3.94275125]
[1749153252569,0.0129,2536.4,2536.1,3.94295872]
[1749153252768,0.0129,2536.4,2535.3,0.777]
[1749153252938,0.55,2536.2,2535.5,16.0]
[1749153253137,0.55,2536.2,2535.9,3.94328023]
[1749153253334,0.55,2536.3,2535.9,3.94327053]
[1749153253539,0.55,2536.3,2536.2,3.94290671]
[1749153253842,0.0129,2536.4,2536.3,3.94275125]
[1749153254067,0.0129,2536.4,2535.7,8.91879025]
[1749153254241,0.5629,2536.4,2536.0,3.94308427]
[1749153254641,0.5629,2536.4,2535.8,3.94352703]
[1749153254837,0.5629,2536.4,2535.6,3.94379001]
[1749153255037,0.55,2536.3,2536.2,3.94290671]
[1749153255244,0.55,2536.3,2535.6,3.94379001]
[1749153255245,0.55,2536.3,2536.1,3.9429795]
[1749153255540,0.55,2536.3,2536.2,3.94290671]
[1749153255778,0.55,2536.3,2535.6,3.94383972]
[1749153255973,0.55,2536.3,2536.1,3.9430194]
[1749153256147,0.55,2536.3,2536.0,3.94319377]
[1749153256356,4.49287426,2536.3,2535.5,3.94399526]
[1749153256679,0.55,2536.1,2535.4,1.6777]
[1749153256842,0.55,2536.1,2535.8,3.94341055]
[1749153257155,0.55,2536.3,2535.9,3.94329559]
[1749153257941,11.10657695,2536.4,2535.3,0.777]
[1749153257942,0.55,2536.1,2535.3,4.72130476]
[1749153258207,0.55,2536.1,2536.0,3.94321766]
[1749153258968,7.7,2536.2,2536.1,3.94306218]
[1749153259146,7.7,2536.2,2535.8,3.94347387]
[1749153259485,7.7,2536.2,2535.9,3.94336061]
[1749153259780,7.7,2536.2,2535.9,3.94322545]
[1749153259978,7.7,2536.2,2535.8,3.9434434]
[1749153259979,7.7,2536.2,2535.8,3.94344525]
[1749153260155,7.7,2536.2,2535.9,3.94331854]
[1749153260351,7.7,2536.2,2535.8,3.94347268]
[1749153260568,0.55,2536.1,2535.3,2.873]
[1749153260760,0.55,2536.1,2535.6,3.94373864]
[1749153260959,0.55,2536.1,2535.2,2.096]
[1749153260960,0.0129,2536.0,2535.2,2.096]
[1749153261187,0.55,2535.9,2535.2,2.096]
[1749153261387,0.55,2535.6,2534.9,0.39924854]
[1749153261554,7.699,2535.6,2534.9,3.94492879]
[1749153261761,0.0129,2535.5,2534.8,18.096]
[1749153261990,0.0129,2535.5,2534.8,4.37867237]
[1749153262192,0.5629,2535.5,2535.1,3.9444952]
[1749153262405,0.5629,2535.5,2534.8,2.096]
[1749153262719,4.50627868,2535.9,2535.0,3.94477317]
[1749153262900,7.149,2535.5,2534.8,11.01479025]
[1749153263100,0.0129,2535.3,2534.8,18.096]
[1749153263302,0.0129,2535.3,2535.0,3.94465594]
[1749153263811,0.0129,2535.3,2535.1,3.94452381]
[1749153263999,0.0129,2535.3,2535.0,3.94465594]
[1749153264000,0.0129,2535.3,2534.9,3.94492879]
[1749153264205,0.0129,2535.3,2535.0,3.94476374]
[1749153264716,0.0129,2535.3,2535.2,3.94446197]
[1749153265477,0.0129,2535.3,2535.1,3.94452882]
[1749153265762,0.0129,2535.3,2534.6,2.097]
[1749153266017,0.0129,2535.3,2534.7,3.94524006]
[1749153266178,0.55,2535.2,2534.6,2.71771905]
[1749153266380,0.5629,2535.3,2535.0,3.94473844]
[1749153266578,0.5629,2535.3,2535.0,3.94475151]
[1749153266780,7.149,2535.2,2534.6,6.66308093]
[1749153267028,0.5629,2535.1,2533.9,4.75607125]
[1749153267320,0.55,2534.5,2534.1,3.96609945]
[1749153267474,7.699,2534.5,2534.1,3.96609945]
[1749153267676,7.699,2534.5,2534.1,3.9661621]
[1749153267917,7.699,2534.5,2534.1,0.02]
[1749153268692,11.64456668,2534.5,2534.1,0.02]
[1749153268906,0.55,2534.3,2534.1,0.02]
[1749153269111,4.50891846,2534.2,2534.1,0.02]
[1749153269426,0.5629,2534.2,2534.1,0.02]
[1749153269648,0.0401,2534.5,2534.4,3.94570707]
[1749153269857,0.0401,2534.5,2534.4,13.25906803]
[1749153270025,0.0401,2534.5,2534.4,14.07386803]
[1749153270217,0.0401,2534.5,2534.4,1.20937071]
[1749153270445,7.201,2534.5,2534.1,0.02]
[1749153270621,7.201,2534.5,2534.2,3.94593345]
[1749153270944,0.55,2534.4,2534.1,3.96614324]
[1749153271307,0.55,2534.4,2534.1,0.02]
[1749153271958,0.55,2534.4,2534.1,3.96616471]
[1749153272658,0.55,2534.4,2534.1,0.02]
[1749153272842,0.55,2534.2,2534.1,0.02]
[1749153273842,4.49601846,2534.2,2534.1,0.02]
[1749153274042,4.50891846,2534.2,2534.1,0.02]
[1749153275344,20.50891846,2534.2,2534.1,0.02]
[1749153276752,16.5629,2534.2,2534.1,0.02]
[1749153276955,23.7129,2534.2,2534.1,0.02]
[1749153277165,27.65891846,2534.2,2534.1,0.02]
[1749153277311,7.7129,2534.2,2534.1,0.02]
[1749153277911,11.65891846,2534.2,2534.1,0.02]
[1749153278110,7.7129,2534.2,2534.1,0.02]
[1749153278939,3.98571728,2534.5,2534.3,3.94582672]
[1749153278940,0.053,2534.5,2534.3,3.94582672]
[1749153279109,0.053,2534.5,2534.1,0.02]
[1749153279434,7.149,2534.4,2534.1,4.44053641]
[1749153279639,7.149,2534.4,2534.3,3.94586276]
[1749153279812,0.053,2534.5,2534.3,3.94586276]
[1749153279813,0.0401,2534.5,2534.4,3.94570707]
[1749153280016,7.1891,2534.5,2534.4,3.94570707]
[1749153280218,4.49601846,2534.2,2534.1,0.02]
[1749153280443,0.5629,2534.2,2534.1,0.02]
[1749153282168,4.50891846,2534.2,2534.1,0.02]
[1749153282342,0.5629,2534.2,2534.1,0.02]
[1749153282729,7.698,2534.2,2534.1,0.02]
[1749153283478,16.0129,2534.6,2534.2,3.9459587]
[1749153283769,0.55,2534.4,2534.2,3.94601313]
[1749153284131,0.55,2534.5,2534.1,3.96612469]
[1749153284455,0.55,2534.3,2534.1,3.96612469]
[1749153284974,0.55,2534.3,2534.1,0.02]
[1749153285278,0.0129,2534.1,2533.3,0.8247]
[1749153285583,0.0129,2534.1,2533.1,3.96761701]
[1749153285584,0.55,2533.4,2533.1,3.96761701]
[1749153285879,7.698,2533.4,2533.3,3.94742036]
[1749153286067,7.698,2533.4,2533.1,3.96768166]
[1749153286068,7.698,2533.4,2533.1,3.9676513]
[1749153286285,7.698,2533.4,2533.2,3.94755446]
[1749153286428,0.0129,2533.9,2533.5,3.9470233]
[1749153286633,0.0129,2533.9,2533.1,4.75920094]
[1749153286634,7.698,2533.8,2533.7,3.94679717]
[1749153286930,7.698,2533.8,2533.6,3.94687969]
[1749153288612,7.698,2533.8,2533.1,0.81154724]
[1749153288613,0.55,2533.2,2533.1,0.02]
[1749153288814,7.7099,2533.2,2533.1,0.02]
[1749153289087,0.55,2533.2,2533.1,0.02]
[1749153289377,7.697,2533.2,2533.1,0.02]
[1749153290380,11.65747618,2533.2,2533.1,0.02]
[1749153291462,7.7099,2533.2,2533.1,0.02]
[1749153291881,11.65747618,2533.2,2533.1,0.02]
[1749153292082,7.7099,2533.2,2533.1,0.02]
[1749153292299,11.65747618,2533.2,2533.1,0.02]
[1749153292602,7.7099,2533.2,2533.1,0.02]
[1749153292812,27.65747618,2533.2,2533.1,0.02]
[1749153293170,28.02066615,2533.2,2533.1,0.02]
[1749153294261,28.37559054,2533.2,2533.1,0.02]
[1749153294465,28.02066615,2533.2,2533.1,0.02]
[1749153295022,28.37599898,2533.2,2533.1,0.02]
[1749153295314,28.02066615,2533.2,2533.1,0.02]
[1749153295796,30.47102759,2533.2,2533.1,0.02]
[1749153296000,30.11566615,2533.2,2533.1,0.02]
[1749153296296,30.47102512,2533.2,2533.1,0.02]
[1749153296497,30.47186444,2533.2,2533.1,0.02]
[1749153296704,30.47186444,2533.2,2532.1,0.02]
[1749153296705,26.52429294,2533.2,2532.1,0.02]
[1749153296927,4.51203513,2532.2,2532.1,0.02]
[1749153297123,11.65903513,2532.2,2532.1,0.02]
[1749153297806,3.94900858,2532.3,2532.2,3.94908277]
[1749153297807,7.697,2532.3,2532.2,3.94908277]
[1749153298013,0.6454575,2532.7,2532.3,16.0]
[1749153298208,7.698,2532.6,2532.3,19.94887642]
[1749153300031,0.55,2532.6,2532.5,16.0]
[1749153300234,7.697,2532.6,2532.1,0.02]
[1749153300420,4.49913513,2532.2,2532.1,0.02]
[1749153300621,0.55,2532.2,2532.1,0.02]
[1749153300940,7.697,2532.2,2532.1,16.02]
[1749153301140,0.55,2532.2,2532.1,0.02]
[1749153301439,0.55,2532.6,2532.1,0.02]
[1749153301633,0.6454575,2532.7,2532.6,19.94851141]
[1749153301805,0.6454575,2532.7,2532.6,20.72981141]
[1749153302006,0.60695009,2534.2,2532.6,20.72981141]
[1749153302007,0.6582,2534.1,2533.1,20.72903202]
[1749153302201,3.94656069,2533.9,2533.3,3.9472987]
[1749153302396,7.147,2534.1,2533.2,3.94749972]
[1749153302642,4.60462489,2534.0,2533.4,3.94724653]
[1749153302821,0.55,2533.9,2533.4,16.0]
[1749153303023,0.55,2533.9,2533.1,0.7813]
[1749153303024,0.0401,2533.2,2533.1,0.7813]
[1749153303335,0.0401,2533.2,2533.1,21.41134796]
[1749153303712,0.0401,2533.2,2533.1,17.46361594]
[1749153303914,0.0401,2533.2,2532.4,16.7661]
[1749153304244,7.696,2533.1,2532.4,0.7661]
[1749153304412,7.1861,2533.2,2533.0,3.94788787]
[1749153304609,7.1861,2533.2,2532.8,3.94805248]
[1749153304810,7.7361,2533.2,2533.1,19.94773202]
[1749153305011,7.1851,2533.2,2533.1,19.94773202]
[1749153305210,7.1851,2533.2,2533.1,16.0]
[1749153305211,7.7351,2533.2,2533.1,16.0]
[1749153305725,0.0401,2533.2,2533.1,16.0]
[1749153307739,0.55,2533.0,2532.2,0.753]
[1749153307939,0.0401,2533.2,2532.4,8.91879025]
[1749153308139,0.0401,2533.2,2533.1,3.94773202]
[1749153308328,7.1841,2533.2,2533.1,4.70073202]
[1749153308531,0.0401,2533.2,2533.1,23.09029401]
[1749153308707,0.0401,2533.2,2533.1,19.14256199]
[1749153308906,0.0401,2533.2,2533.1,20.70073202]
[1749153309437,0.0401,2533.2,2533.1,16.0]
[1749153309908,0.0401,2533.2,2533.1,19.94773202]
[1749153310441,0.0401,2533.2,2533.1,16.0]
[1749153310649,0.0401,2533.2,2533.1,19.94773202]
[1749153310820,0.0401,2533.2,2533.1,23.2291708]
[1749153311152,0.0401,2533.2,2533.1,23.9955708]
[1749153312562,0.02,2534.9,2534.3,0.7532]
[1749153312859,0.6582,2534.5,2533.7,16.0]
[1749153313149,0.6582,2534.5,2533.8,16.0]
[1749153313150,4.49598123,2534.3,2533.8,16.0]
[1749153313442,0.55,2534.4,2533.6,0.8204]
[1749153313609,0.55,2534.0,2533.3,16.8204]
[1749153313810,0.55,2533.7,2533.3,4.76780351]
[1749153314017,0.55,2533.8,2533.0,0.8204]
[1749153314506,0.45469513,2534.5,2533.4,16.8204]
[1749153314716,7.142,2534.4,2533.7,16.0]
[1749153314912,7.142,2534.4,2533.5,16.0]
[1749153314913,0.55,2534.3,2533.5,16.0]
[1749153315140,3.94614146,2534.2,2533.7,3.94670309]
[1749153315317,0.55,2533.9,2533.4,16.8204]
[1749153315518,7.141,2533.8,2533.4,20.76759193]
[1749153315713,7.141,2533.8,2533.6,16.0]
[1749153315918,7.141,2533.8,2533.5,3.94699778]
[1749153316116,7.141,2533.8,2533.7,3.94679717]
[1749153316321,7.141,2533.8,2533.7,19.94675734]
[1749153316516,4.60383791,2534.5,2534.0,3.94628436]
[1749153316753,3.94613526,2534.2,2533.7,16.0]
[1749153316920,0.55,2534.1,2533.7,19.946769]
[1749153317255,1.58300848,2534.8,2534.0,0.7916]
[1749153317456,0.6582,2534.8,2533.7,1.71425358]
[1749153317628,3.94566544,2534.5,2534.0,3.94632968]
[1749153317815,0.55,2534.4,2533.9,3.94645778]
[1749153318019,0.55,2534.4,2533.7,16.7916]
[1749153318251,0.55,2534.2,2533.7,16.7916]
[1749153318563,0.55,2534.0,2533.7,16.0]
[1749153318858,0.55,2534.0,2533.4,0.8088]
[1749153319026,7.69,2534.1,2534.0,16.0]
[1749153319227,0.55,2534.0,2533.4,4.75600691]
[1749153319457,4.49638452,2534.0,2533.5,3.94707219]
[1749153319654,4.49638452,2534.0,2533.6,16.0]
[1749153319858,3.94679717,2533.7,2533.4,0.8088]
[1749153320045,7.139,2533.6,2533.3,19.94735033]
[1749153320356,7.139,2533.6,2533.3,16.0]
[1749153320547,0.55,2533.5,2533.3,16.0]
[1749153321052,7.689,2533.6,2533.5,3.94710874]
[1749153321255,7.689,2533.6,2533.4,19.94718528]
[1749153321557,4.49634568,2534.0,2533.7,16.0]
[1749153321760,0.55,2533.8,2533.5,19.94702843]
[1749153321966,0.0779,2534.1,2534.0,16.0]
[1749153322124,7.2169,2534.1,2534.0,16.0]
[1749153322325,7.2169,2534.1,2533.7,0.8088]
[1749153322521,0.0779,2534.1,2534.0,19.94632991]
[1749153323259,0.0779,2534.1,2534.0,20.75512991]
[1749153323554,0.0779,2534.1,2534.0,19.94632991]
[1749153323957,0.0779,2534.1,2534.0,16.0]
[1749153324665,0.0779,2534.1,2534.0,19.94632991]
[1749153324957,0.0779,2534.1,2534.0,32.0783014]
[1749153325856,7.2149,2534.1,2534.0,16.8239]
[1749153326032,7.2149,2534.1,2534.0,19.94632991]
[1749153326827,3.94646904,2534.0,2533.2,2.9088]
[1749153327049,3.94646904,2534.0,2533.5,3.94703879]
[1749153327457,3.94648565,2533.9,2533.3,3.94738076]
[1749153327645,5.15459597,2534.0,2533.6,16.0]
[1749153327840,3.94671597,2533.8,2533.4,16.0]
[1749153328050,7.136,2533.7,2533.4,16.0]
[1749153328244,7.136,2533.7,2533.5,3.94709095]
[1749153328438,7.136,2533.7,2533.6,3.94695295]
[1749153328658,0.0779,2534.1,2533.2,16.8208]
[1749153328853,7.136,2534.0,2533.9,19.94648565]
[1749153329029,0.0779,2534.1,2534.0,19.94632991]
[1749153329435,7.2139,2534.1,2534.0,19.94632991]
[1749153329751,7.2139,2534.1,2533.9,16.8151]
[1749153329926,7.2139,2534.1,2533.9,16.0]
[1749153330130,7.2139,2534.1,2533.9,3.946441]
[1749153330538,7.2139,2534.1,2534.0,19.94632991]
[1749153331261,7.2139,2534.1,2534.0,16.0]
[1749153331460,0.0779,2534.1,2534.0,19.94632991]
[1749153331668,7.2129,2534.1,2534.0,19.94632991]
[1749153332452,7.2129,2534.1,2534.0,21.81126498]
[1749153332653,0.0779,2534.1,2534.0,21.81126498]
[1749153332857,0.0779,2534.1,2534.0,22.62236498]
[1749153333254,0.0779,2534.1,2534.0,20.75742991]
[1749153333496,0.6279,2534.1,2534.0,16.0]
[1749153333668,0.55,2533.9,2533.2,2.088]
[1749153333853,0.55,2533.9,2533.5,3.94695693]
[1749153333854,7.134,2533.8,2533.5,3.94695693]
[1749153334169,7.134,2533.8,2533.2,6.03548685]
[1749153334170,0.55,2533.7,2533.2,6.03548685]
[1749153334368,0.55,2533.7,2533.3,3.94732021]
[1749153334550,0.55,2533.7,2533.4,19.94726181]
[1749153334747,0.90588506,2533.7,2533.3,3.94729754]
[1749153335071,0.90655157,2533.7,2533.2,2.088]
[1749153335368,0.55,2533.5,2533.3,16.0]
[1749153335556,0.55,2533.5,2532.5,8.91879025]
[1749153335557,0.55,2533.3,2532.7,1.2053368]
[1749153335864,0.55,2533.3,2533.2,16.0]
[1749153336067,0.55,2533.3,2532.5,3.94852525]
[1749153336269,0.55,2532.9,2532.5,3.94858155]
[1749153336466,7.133,2532.8,2532.4,3.9487348]
[1749153336671,7.133,2532.8,2532.3,3.94895758]
[1749153336672,7.133,2532.8,2532.5,3.94861748]
[1749153336870,0.55,2532.7,2532.4,16.0]
[1749153337273,0.55,2532.7,2532.1,4.77696278]
[1749153337274,0.6582,2532.5,2532.1,0.02]
[1749153337475,7.684,2532.4,2532.1,0.02]
[1749153337674,7.684,2532.4,2532.1,16.02]
[1749153337868,7.684,2532.4,2532.1,0.02]
[1749153338861,7.684,2532.4,2532.1,16.02]
[1749153339192,4.49913513,2532.2,2532.1,0.02]
[1749153339356,5.15733513,2532.2,2532.1,0.02]
[1749153340304,1.2082,2532.2,2532.1,0.02]
[1749153340893,0.35456598,2532.4,2532.1,0.02]
[1749153341053,0.36283476,2532.7,2532.1,0.02]
[1749153341054,4.49913513,2532.2,2532.1,0.02]
[1749153341256,14.07612538,2532.2,2532.1,0.02]
[1749153341489,14.07612538,2532.2,2530.2,12.88859025]
[1749153341490,4.50069532,2531.2,2530.2,0.793]
[1749153341660,11.63469532,2531.2,2530.2,0.793]
[1749153341854,11.63469532,2531.2,2530.4,3.95189044]
[1749153342063,4.31249936,2531.6,2530.9,3.95111502]
[1749153342256,0.55,2531.5,2531.0,16.0]
[1749153342487,1.77385119,2531.6,2531.1,1.70384]
[1749153342488,7.134,2531.4,2531.1,1.70384]
[1749153342795,7.134,2531.4,2531.3,3.95053924]
[1749153342979,1.77385119,2531.6,2531.5,3.95022713]
[1749153343167,9.45985119,2531.6,2531.5,3.95022713]
[1749153344410,9.45985119,2531.6,2531.4,16.0]
[1749153344711,9.45985119,2531.6,2531.5,1.82364714]
[1749153344712,7.686,2531.6,2531.5,1.82364714]
[1749153344914,7.68933,2531.6,2531.4,3.95023565]
[1749153345215,7.76723,2531.6,2531.5,3.95022713]
[1749153345380,7.76723,2531.6,2531.4,3.95030047]
[1749153345554,7.76723,2531.6,2531.5,3.95022713]
[1749153345756,7.21623,2531.6,2531.5,3.95022713]
[1749153346168,7.76623,2531.6,2531.2,3.95069508]
[1749153346493,0.55,2531.5,2530.6,2.084]
[1749153346694,0.55,2531.5,2530.7,5.05172869]
[1749153346895,0.55333,2531.5,2531.3,3.95050918]
[1749153347195,0.55333,2531.5,2531.0,3.9510075]
[1749153347381,0.55333,2531.5,2531.4,3.95038318]
[1749153347997,0.55333,2531.5,2531.3,3.95046389]
[1749153348298,0.55333,2531.5,2531.3,3.95045245]
[1749153348799,0.55333,2531.5,2531.1,0.7961]
[1749153348800,1.33373,2531.5,2531.1,3.95084331]
[1749153349000,1.33373,2531.5,2530.8,0.8181]
[1749153349206,0.00333,2531.5,2531.4,3.95038318]
[1749153349385,7.13933,2531.5,2531.3,3.9504511]
[1749153349708,7.13933,2531.5,2531.2,3.950545]
[1749153350469,7.13933,2531.5,2531.0,16.0]
[1749153350692,0.55333,2531.5,2531.4,3.95038318]
[1749153350893,7.68833,2531.5,2531.4,3.95038318]
[1749153351093,7.68833,2531.5,2531.3,3.95047413]
[1749153351279,7.68833,2531.5,2531.2,3.95062773]
[1749153351280,12.35833,2531.5,2531.4,3.95038318]
[1749153351697,12.35833,2531.5,2531.3,3.95050665]
[1749153351878,12.35833,2531.5,2531.2,3.95067312]
[1749153352078,0.00333,2531.5,2531.4,3.95038318]
[1749153352284,0.00333,2531.5,2531.4,21.55857493]
[1749153352614,2.084,2532.6,2532.2,3.94913513]
[1749153352773,3.94862368,2532.6,2532.0,3.94933462]
[1749153352973,0.55,2532.4,2531.8,0.8181]
[1749153353182,4.49891238,2532.4,2531.9,3.94952921]
[1749153353382,11.08369488,2532.5,2531.8,0.8181]
[1749153353383,7.135,2532.5,2531.8,0.8181]
[1749153353598,7.135,2532.5,2532.2,3.94901235]
[1749153353994,0.02,2532.9,2532.8,3.94819962]
[1749153354511,7.155,2532.9,2532.8,3.94819962]
[1749153355084,0.02,2532.9,2532.8,3.94819962]
[1749153355289,7.154,2532.9,2532.8,3.94819962]
[1749153356283,0.02,2532.9,2532.8,3.94819962]
[1749153356477,7.154,2532.9,2532.5,16.0]
[1749153356671,7.154,2532.9,2532.8,3.94819962]
[1749153357927,7.153,2532.9,2532.8,3.94819962]